fUSD/lending_fUSD_20240902
["ID","MTS","AMOUNT","RATE_DAILY","PERIOD"]
[336901377,1725238240918,-500.0,0.00022469,2]
[336901379,1725238240927,-500.0,0.00022469,2]
[336901381,1725238240936,-500.0,0.00022469,2]
[336901383,1725238240946,-500.0,0.00022469,2]
[336901385,1725238240955,-500.0,0.00022469,2]
[336901387,1725238240965,-500.0,0.00022469,2]
[336901389,1725238240975,-500.0,0.00022469,2]
[336901391,1725238240984,-945.93,0.00022469,2]
[336901393,1725238240994,-554.77,0.00022469,2]
[336901395,1725238241003,-500.0,0.00022469,2]
[336901397,1725238241013,-1927.8,0.00022469,2]
[336901399,1725238241023,-500.0,0.00022469,2]
[336901401,1725238241032,-500.0,0.00022469,2]
[336901403,1725238241041,-500.0,0.00022469,2]
[336901405,1725238241051,-500.0,0.00022469,2]
[336901407,1725238241061,-500.0,0.00022469,2]
[336901409,1725238241070,-182.44377108,0.00022469,2]
[336901411,1725238241081,-1058.15,0.00022469,2]
[336901413,1725238241090,-1160.29,0.00022469,2]
[336901415,1725238241100,-500.0,0.00022469,2]
[336901417,1725238241110,-1000.0,0.00022469,2]
[336901419,1725238241120,-539.49,0.00022469,2]
[336901421,1725238241129,-500.0,0.00022469,2]
[336901423,1725238241139,-520.33,0.00022469,2]
[336901425,1725238241149,-500.0,0.00022469,2]
[336901427,1725238241158,-500.0,0.00022469,2]
[336901429,1725238241168,-500.0,0.00022469,2]
[336901431,1725238241178,-500.0,0.00022469,2]
[336901433,1725238241188,-500.0,0.00022469,2]
[336901435,1725238241198,-511.3,0.00022469,2]
[336901437,1725238241208,-1376.88,0.00022469,2]
[336901439,1725238241218,-500.0,0.00022469,2]
[336901441,1725238241228,-500.0,0.00022469,2]
[336901443,1725238241238,-500.0,0.00022469,2]
[336901445,1725238241248,-500.0,0.00022469,2]
[336901447,1725238241257,-635.69,0.00022469,2]
[336901450,1725238241267,-500.0,0.00022469,2]
[336901451,1725238241277,-500.0,0.00022469,2]
[336901454,1725238241287,-839.59,0.00022469,2]
[336901456,1725238241298,-500.0,0.00022469,2]
[336901458,1725238241308,-500.0,0.00022469,2]
[336901460,1725238241317,-500.0,0.00022469,2]
[336901462,1725238241326,-500.0,0.00022469,2]
[336901464,1725238241336,-500.0,0.00022469,2]
[336901466,1725238241345,-807.14,0.00022469,2]
[336901468,1725238241355,-500.0,0.00022469,2]
[336901469,1725238241364,-368.39143389,0.00022469,2]
[336901472,1725238241374,-418.04832098,0.00022469,2]
[336901473,1725238241383,-500.0,0.00022469,2]
[336901476,1725238241393,-500.0,0.00022469,2]
[336901477,1725238241402,-500.0,0.00022469,2]
[336901480,1725238241412,-500.0,0.00022469,2]
[336901481,1725238241422,-500.0,0.00022469,2]
[336901484,1725238241432,-500.0,0.00022469,2]
[336901486,1725238241441,-1423.55,0.00022469,2]
[336901488,1725238241451,-529.01,0.00022469,2]
[336901490,1725238241460,-500.0,0.00022469,2]
[336901492,1725238241470,-500.0,0.00022469,2]
[336901493,1725238241480,-500.0,0.00022469,2]
[336901495,1725238241490,-1593.67,0.00022469,2]
[336901497,1725238241499,-500.0,0.00022469,2]
[336901499,1725238241509,-1678.91,0.00022469,2]
[336901502,1725238241518,-500.0,0.00022469,2]
[336901504,1725238241528,-995.85,0.00022469,2]
[336901506,1725238241537,-500.0,0.00022469,2]
[336901508,1725238241547,-500.0,0.00022469,2]
[336901510,1725238241556,-500.0,0.00022469,2]
[336901512,1725238241566,-500.0,0.00022469,2]
[336901514,1725238241575,-1451.95,0.00022469,2]
[336901535,1725238241787,-500.0,0.00022469,2]
[336901538,1725238241812,-500.0,0.00022469,2]
[336901540,1725238241822,-500.0,0.00022469,2]
[336901542,1725238241831,-618.28,0.00022469,2]
[336901544,1725238241841,-1932.08,0.00022469,2]
[336901547,1725238241850,-500.0,0.00022469,2]
[336901548,1725238241859,-182.10726963,0.00022469,2]
[336901550,1725238241869,-500.0,0.00022469,2]
[336901552,1725238241878,-500.0,0.00022469,2]
[336901554,1725238241887,-500.0,0.00022469,2]
[336901556,1725238241896,-500.0,0.00022469,2]
[336901559,1725238241905,-500.0,0.00022469,2]
[336901561,1725238241915,-176.5398205,0.00022469,2]
[336901563,1725238241924,-531.93421043,0.00022469,2]
[336901565,1725238241933,-500.0,0.00022469,2]
[336901567,1725238241943,-500.0,0.00022469,2]
[336901568,1725238241952,-500.0,0.00022469,2]
[336901571,1725238241961,-500.0,0.00022469,2]
[336901572,1725238241971,-600.47253754,0.00022469,2]
[336901575,1725238241981,-500.0,0.00022469,2]
[336901576,1725238241991,-500.0,0.00022469,2]
[336901579,1725238242001,-500.0,0.00022469,2]
[336901581,1725238242010,-524.88,0.00022469,2]
[336901582,1725238242020,-500.0,0.00022469,2]
[336901585,1725238242031,-500.0,0.00022469,2]
[336901587,1725238242041,-500.0,0.00022469,2]
[336901589,1725238242052,-310.14959149,0.00022469,2]
[336901591,1725238242061,-500.0,0.00022469,2]
[336901593,1725238242071,-2144.47,0.00022469,2]
[336901595,1725238242081,-868.69,0.00022469,2]
[336901597,1725238242090,-500.0,0.00022469,2]
[336901599,1725238242100,-500.0,0.00022469,2]
[336901601,1725238242109,-500.0,0.00022469,2]
[336901603,1725238242118,-500.0,0.00022469,2]
[336901605,1725238242128,-719.8,0.00022469,2]
[336901607,1725238242137,-500.0,0.00022469,2]
[336901609,1725238242147,-500.0,0.00022469,2]
[336901611,1725238242156,-500.0,0.00022469,2]
[336901613,1725238242165,-228.9479011,0.00022469,2]
[336901615,1725238242174,-500.0,0.00022469,2]
[336901616,1725238242183,-500.0,0.00022469,2]
[336901619,1725238242194,-1294.18,0.00022469,2]
[336901621,1725238242203,-500.0,0.00022469,2]
[336901623,1725238242214,-500.0,0.00022469,2]
[336901625,1725238242224,-500.0,0.00022469,2]
[336901627,1725238242240,-500.0,0.00022469,2]
[336901628,1725238242249,-607.59,0.00022469,2]
[336901630,1725238242259,-307.41505758,0.00022469,2]
[336901632,1725238242267,-500.0,0.00022469,2]
[336901634,1725238242277,-500.0,0.00022469,2]
[336901636,1725238242286,-500.0,0.00022469,2]
[336901638,1725238242295,-500.0,0.00022469,2]
[336901640,1725238242305,-1232.15,0.00022469,2]
[336901642,1725238242314,-594.38,0.00022469,2]
[336901644,1725238242323,-500.0,0.00022469,2]
[336901646,1725238242334,-500.0,0.00022469,2]
[336901648,1725238242343,-500.0,0.00022469,2]
[336901650,1725238242353,-500.0,0.00022469,2]
[336901652,1725238242363,-1754.93,0.00022469,2]
[336901654,1725238242372,-500.0,0.00022469,2]
[336901656,1725238242381,-552.68,0.00022469,2]
[336901658,1725238242390,-500.0,0.00022469,2]
[336901660,1725238242400,-500.0,0.00022469,2]
[336901662,1725238242409,-500.0,0.00022469,2]
[336901664,1725238242419,-500.0,0.00022469,2]
[336901666,1725238242428,-500.0,0.00022469,2]
[336901668,1725238242437,-1718.57,0.00022469,2]
[336901670,1725238242447,-500.0,0.00022469,2]
[336901672,1725238242456,-500.0,0.00022469,2]
[336901674,1725238242465,-512.01560668,0.00022469,2]
[336901676,1725238242474,-635.94,0.00022469,2]
[336901678,1725238242483,-500.0,0.00022469,2]
[336901680,1725238242493,-500.0,0.00022469,2]
[336901682,1725238242503,-500.0,0.00022469,2]
[336901684,1725238242512,-500.0,0.00022469,2]
[336901686,1725238242521,-500.0,0.00022469,2]
[336901688,1725238242530,-500.0,0.00022469,2]
[336901690,1725238242540,-500.0,0.00022469,2]
[336901692,1725238242549,-500.0,0.00022469,2]
[336901694,1725238242558,-500.0,0.00022469,2]
[336901696,1725238242568,-500.0,0.00022469,2]
[336901698,1725238242577,-500.0,0.00022469,2]
[336901700,1725238242586,-533.64,0.00022469,2]
[336901702,1725238242596,-507.65156846,0.00022469,2]
[336901704,1725238242610,-500.0,0.00022469,2]
[336901706,1725238242619,-500.0,0.00022469,2]
[336901708,1725238242629,-500.0,0.00022469,2]
[336901710,1725238242638,-1361.88,0.00022469,2]
[336901712,1725238242649,-936.89,0.00022469,2]
[336901714,1725238242658,-500.0,0.00022469,2]
[336901715,1725238242668,-756.11,0.00022469,2]
[336901717,1725238242678,-500.0,0.00022469,2]
[336901719,1725238242687,-500.0,0.00022469,2]
[336901722,1725238242698,-515.12485997,0.00022469,2]
[336901724,1725238242707,-518.39507462,0.00022469,2]
[336901726,1725238242716,-500.0,0.00022469,2]
[336901728,1725238242732,-500.0,0.00022469,2]
[336901730,1725238242741,-500.0,0.00022469,2]
[336901732,1725238242751,-653.76,0.00022469,2]
[336901734,1725238242760,-500.0,0.00022469,2]
[336901736,1725238242769,-500.0,0.00022469,2]
[336901737,1725238242779,-317.21795313,0.00022469,2]
[336901739,1725238242788,-500.0,0.00022469,2]
[336901741,1725238242797,-1254.37,0.00022469,2]
[336901743,1725238242807,-1594.35,0.00022469,2]
[336901745,1725238242817,-500.0,0.00022469,2]
[336901749,1725238242826,-500.0,0.00022469,2]
[336901752,1725238242836,-586.52,0.00022469,2]
[336901754,1725238242845,-500.0,0.00022469,2]
[336901756,1725238242855,-780.97,0.00022469,2]
[336901757,1725238242864,-500.0,0.00022469,2]
[336901758,1725238242874,-936.47,0.00022469,2]
[336901760,1725238242884,-514.05,0.00022469,2]
[336901762,1725238242893,-657.06,0.00022469,2]
[336901764,1725238242903,-500.0,0.00022469,2]
[336901766,1725238242912,-500.0,0.00022469,2]
[336901768,1725238242922,-658.51,0.00022469,2]
[336901770,1725238242931,-500.0,0.00022469,2]
[336901772,1725238242941,-500.0,0.00022469,2]
[336901774,1725238242950,-500.0,0.00022469,2]
[336901776,1725238242960,-606.97,0.00022469,2]
[336901778,1725238242969,-500.0,0.00022469,2]
[336901780,1725238242981,-500.0,0.00022469,2]
[336901781,1725238242990,-500.0,0.00022469,2]
[336901782,1725238242999,-500.0,0.00022469,2]
[336901783,1725238243010,-500.0,0.00022469,2]
[336901784,1725238243019,-500.0,0.00022469,2]
[336901785,1725238243029,-500.0,0.00022469,2]
[336901786,1725238243038,-500.0,0.00022469,2]
[336901787,1725238243047,-500.0,0.00022469,2]
[336901788,1725238243057,-500.0,0.00022469,2]
[336901789,1725238243066,-1055.05,0.00022469,2]
[336901790,1725238243076,-500.0,0.00022469,2]
[336901791,1725238243085,-1272.16,0.00022469,2]
[336901792,1725238243094,-853.11,0.00022469,2]
[336901793,1725238243103,-500.0,0.00022469,2]
[336901795,1725238243113,-500.0,0.00022469,2]
[336901797,1725238243122,-976.66,0.00022469,2]
[336901799,1725238243131,-500.0,0.00022469,2]
[336901801,1725238243141,-500.0,0.00022469,2]
[336901803,1725238243150,-500.0,0.00022469,2]
[336901805,1725238243159,-4285.82,0.00022469,2]
[336901807,1725238243169,-871.24,0.00022469,2]
[336901809,1725238243178,-500.0,0.00022469,2]
[336901811,1725238243187,-500.0,0.00022469,2]
[336901813,1725238243197,-639.05,0.00022469,2]
[336901815,1725238243207,-500.0,0.00022469,2]
[336901817,1725238243216,-500.0,0.00022469,2]
[336901819,1725238243225,-500.0,0.00022469,2]
[336901821,1725238243235,-500.0,0.00022469,2]
[336901823,1725238243246,-500.0,0.00022469,2]
[336901825,1725238243257,-500.0,0.00022469,2]
[336901827,1725238243268,-526.3,0.00022469,2]
[336901830,1725238243278,-513.48607195,0.00022469,2]
[336901832,1725238243287,-1004.89,0.00022469,2]
[336901834,1725238243296,-500.0,0.00022469,2]
[336901836,1725238243306,-710.43,0.00022469,2]
[336901837,1725238243316,-500.0,0.00022469,2]
[336901840,1725238243325,-1889.45,0.00022469,2]
[336901842,1725238243337,-500.0,0.00022469,2]
[336901843,1725238243347,-500.0,0.00022469,2]
[336901846,1725238243357,-500.0,0.00022469,2]
[336901848,1725238243368,-500.0,0.00022469,2]
[336901849,1725238243377,-500.0,0.00022469,2]
[336901851,1725238243387,-500.0,0.00022469,2]
[336901853,1725238243397,-500.0,0.00022469,2]
[336901855,1725238243407,-500.0,0.00022469,2]
[336901857,1725238243416,-766.06,0.00022469,2]
[336901859,1725238243426,-500.0,0.00022469,2]
[336901861,1725238243436,-500.0,0.00022469,2]
[336901863,1725238243445,-500.0,0.00022469,2]
[336901866,1725238243455,-1114.89,0.00022469,2]
[336901868,1725238243464,-3779.13,0.00022469,2]
[336901870,1725238243474,-500.0,0.00022469,2]
[336901872,1725238243484,-500.0,0.00022469,2]
[336901874,1725238243493,-2946.64,0.00022469,2]
[336901876,1725238243503,-500.0,0.00022469,2]
[336901878,1725238243512,-500.0,0.00022469,2]
[336901880,1725238243522,-500.0,0.00022469,2]
[336901882,1725238243531,-500.0,0.00022469,2]
[336901884,1725238243542,-500.0,0.00022469,2]
[336901886,1725238243551,-578.26,0.00022469,2]
[336901888,1725238243561,-667.72,0.00022469,2]
[336901890,1725238243570,-3979.93,0.00022469,2]
[336901892,1725238243579,-1574.01,0.00022469,2]
[336901894,1725238243588,-500.0,0.00022469,2]
[336901896,1725238243604,-500.0,0.00022469,2]
[336901898,1725238243613,-1055.41,0.00022469,2]
[336901900,1725238243623,-500.0,0.00022469,2]
[336901902,1725238243632,-500.0,0.00022469,2]
[336901905,1725238243642,-500.0,0.00022469,2]
[336901908,1725238243652,-500.0,0.00022469,2]
[336901912,1725238243663,-544.05,0.00022469,2]
[336901915,1725238243672,-500.0,0.00022469,2]
[336901918,1725238243684,-500.0,0.00022469,2]
[336901920,1725238243695,-500.0,0.00022469,2]
[336901922,1725238243704,-500.0,0.00022469,2]
[336901924,1725238243713,-1304.06,0.00022469,2]
[336901927,1725238243723,-500.0,0.00022469,2]
[336901930,1725238243732,-823.43,0.00022469,2]
[336901933,1725238243742,-500.0,0.00022469,2]
[336901935,1725238243751,-881.58,0.00022469,2]
[336901937,1725238243763,-500.0,0.00022469,2]
[336901939,1725238243773,-932.16,0.00022469,2]
[336901941,1725238243782,-500.0,0.00022469,2]
[336901943,1725238243791,-500.0,0.00022469,2]
[336901945,1725238243802,-795.83,0.00022469,2]
[336901947,1725238243811,-604.46,0.00022469,2]
[336901949,1725238243821,-500.0,0.00022469,2]
[336901951,1725238243830,-2168.86,0.00022469,2]
[336901953,1725238243839,-1127.14,0.00022469,2]
[336901955,1725238243849,-500.0,0.00022469,2]
[336901957,1725238243858,-947.64,0.00022469,2]
[336901959,1725238243868,-500.0,0.00022469,2]
[336901961,1725238243878,-500.0,0.00022469,2]
[336901963,1725238243888,-1404.61,0.00022469,2]
[336901966,1725238243899,-1438.54,0.00022469,2]
[336901968,1725238243908,-500.0,0.00022469,2]
[336901970,1725238243917,-591.41092412,0.00022469,2]
[336901972,1725238243926,-500.0,0.00022469,2]
[336901973,1725238243935,-500.0,0.00022469,2]
[336901975,1725238243944,-500.0,0.00022469,2]
[336901978,1725238243953,-1467.85,0.00022469,2]
[336901980,1725238243963,-500.0,0.00022469,2]
[336901981,1725238243971,-500.0,0.00022469,2]
[336901983,1725238243981,-1261.8,0.00022469,2]
[336901985,1725238243990,-500.0,0.00022469,2]
[336901987,1725238243999,-500.0,0.00022469,2]
[336901990,1725238244009,-202.22620142,0.00022469,2]
[336901991,1725238244018,-637.5,0.00022469,2]
[336901993,1725238244027,-500.0,0.00022469,2]
[336901995,1725238244036,-500.0,0.00022469,2]
[336901997,1725238244045,-308.12027855,0.00022469,2]
[336901999,1725238244054,-1315.78,0.00022469,2]
[336902001,1725238244063,-908.39,0.00022469,2]
[336902003,1725238244073,-500.0,0.00022469,2]
[336902005,1725238244082,-551.67650194,0.00022469,2]
[336902007,1725238244091,-1195.85,0.00022469,2]
[336902009,1725238244100,-500.0,0.00022469,2]
[336902011,1725238244109,-500.0,0.00022469,2]
[336902013,1725238244119,-500.0,0.00022469,2]
[336902015,1725238244128,-500.0,0.00022469,2]
[336902017,1725238244137,-1733.34,0.00022469,2]
[336902019,1725238244146,-729.43,0.00022469,2]
[336902021,1725238244155,-1735.89,0.00022469,2]
[336902023,1725238244164,-1203.88,0.00022469,2]
[336902025,1725238244173,-500.0,0.00022469,2]
[336902027,1725238244183,-866.75,0.00022469,2]
[336902029,1725238244192,-500.0,0.00022469,2]
[336902038,1725238244264,-537.96323235,0.00022469,2]
[336902040,1725238244273,-500.0,0.00022469,2]
[336902042,1725238244282,-931.75,0.00022469,2]
[336902044,1725238244292,-500.0,0.00022469,2]
[336902046,1725238244300,-500.0,0.00022469,2]
[336902048,1725238244310,-500.0,0.00022469,2]
[336902050,1725238244319,-985.16,0.00022469,2]
[336902052,1725238244328,-3595.03,0.00022469,2]
[336902054,1725238244337,-500.0,0.00022469,2]
[336902056,1725238244346,-500.0,0.00022469,2]
[336902058,1725238244356,-500.0,0.00022469,2]
[336902060,1725238244365,-500.0,0.00022469,2]
[336902062,1725238244374,-474.3426937,0.00022469,2]
[336902064,1725238244383,-379.48979982,0.00022469,2]
[336902066,1725238244392,-1108.81,0.00022469,2]
[336902068,1725238244401,-586.58,0.00022469,2]
[336902070,1725238244410,-500.0,0.00022469,2]
[336902072,1725238244419,-500.0,0.00022469,2]
[336902074,1725238244429,-500.0,0.00022469,2]
[336902076,1725238244441,-500.0,0.00022469,2]
[336902078,1725238244451,-500.0,0.00022469,2]
[336902080,1725238244461,-3631.63,0.00022469,2]
[336902082,1725238244470,-522.4199486,0.00022469,2]
[336902084,1725238244482,-1827.51,0.00022469,2]
[336902086,1725238244492,-181.01401959,0.00022469,2]
[336902089,1725238244502,-500.0,0.00022469,2]
[336902090,1725238244511,-500.0,0.00022469,2]
[336902091,1725238244520,-500.0,0.00022469,2]
[336902093,1725238244531,-500.0,0.00022469,2]
[336902095,1725238244540,-500.0,0.00022469,2]
[336902097,1725238244551,-500.0,0.00022469,2]
[336902100,1725238244561,-1681.62,0.00022469,2]
[336902102,1725238244572,-500.0,0.00022469,2]
[336902104,1725238244581,-1294.46,0.00022469,2]
[336902106,1725238244590,-500.0,0.00022469,2]
[336902108,1725238244603,-761.77,0.00022469,2]
[336902109,1725238244612,-173.36216372,0.00022469,2]
[336902111,1725238244622,-500.0,0.00022469,2]
[336902113,1725238244631,-500.0,0.00022469,2]
[336902115,1725238244642,-576.26448205,0.00022469,2]
[336902117,1725238244653,-500.0,0.00022469,2]
[336902120,1725238244664,-500.0,0.00022469,2]
[336902121,1725238244673,-500.0,0.00022469,2]
[336902123,1725238244683,-500.0,0.00022469,2]
[336902125,1725238244693,-500.0,0.00022469,2]
[336902127,1725238244702,-1387.19,0.00022469,2]
[336902129,1725238244711,-500.0,0.00022469,2]
[336902131,1725238244721,-500.0,0.00022469,2]
[336902133,1725238244733,-838.88,0.00022469,2]
[336902135,1725238244743,-500.0,0.00022469,2]
[336902137,1725238244752,-500.0,0.00022469,2]
[336902139,1725238244760,-20000.0,0.00022469,2]
[336902141,1725238244769,-1033.47,0.00022469,2]
[336902143,1725238244779,-514.19740437,0.00022469,2]
[336902145,1725238244788,-500.0,0.00022469,2]
[336902147,1725238244799,-500.0,0.00022469,2]
[336902149,1725238244809,-1989.46,0.00022469,2]
[336902151,1725238244818,-511.96284658,0.00022469,2]
[336902153,1725238244827,-500.0,0.00022469,2]
[336902155,1725238244836,-275.31607016,0.00022469,2]
[336902157,1725238244846,-500.0,0.00022469,2]
[336902159,1725238244855,-500.0,0.00022469,2]
[336902161,1725238244866,-500.0,0.00022469,2]
[336902163,1725238244875,-500.0,0.00022469,2]
[336902165,1725238244885,-500.0,0.00022469,2]
[336902167,1725238244895,-509.43135414,0.00022469,2]
[336902169,1725238244906,-500.0,0.00022469,2]
[336902172,1725238244919,-2022.67,0.00022469,2]
[336902174,1725238244929,-1204.72,0.00022469,2]
[336902176,1725238244938,-323.52489832,0.00022469,2]
[336902177,1725238244947,-500.0,0.00022469,2]
[336902179,1725238244956,-500.0,0.00022469,2]
[336902181,1725238244965,-500.0,0.00022469,2]
[336902184,1725238244975,-1125.05,0.00022469,2]
[336902185,1725238244984,-500.0,0.00022469,2]
[336902187,1725238244993,-500.0,0.00022469,2]
[336902189,1725238245001,-1694.03,0.00022469,2]
[336902191,1725238245011,-866.88,0.00022469,2]
[336902193,1725238245019,-500.0,0.00022469,2]
[336902195,1725238245028,-1729.13,0.00022469,2]
[336902197,1725238245037,-500.0,0.00022469,2]
[336902199,1725238245046,-500.0,0.00022469,2]
[336902201,1725238245055,-997.44,0.00022469,2]
[336902203,1725238245064,-2538.71,0.00022469,2]
[336902205,1725238245073,-500.0,0.00022469,2]
[336902207,1725238245082,-500.0,0.00022469,2]
[336902209,1725238245091,-500.0,0.00022469,2]
[336902211,1725238245100,-2239.39,0.00022469,2]
[336902213,1725238245109,-707.34,0.00022469,2]
[336902215,1725238245117,-1161.42,0.00022469,2]
[336902217,1725238245126,-502.24101647,0.00022469,2]
[336902219,1725238245135,-372.68402472,0.00022469,2]
[336902221,1725238245144,-1361.17,0.00022469,2]
[336902223,1725238245153,-500.0,0.00022469,2]
[336902225,1725238245162,-727.25,0.00022469,2]
[336902227,1725238245171,-869.47,0.00022469,2]
[336902229,1725238245180,-500.0,0.00022469,2]
[336902230,1725238245189,-500.0,0.00022469,2]
[336902232,1725238245198,-500.0,0.00022469,2]
[336902234,1725238245208,-793.26,0.00022469,2]
[336902236,1725238245217,-500.0,0.00022469,2]
[336902238,1725238245226,-500.0,0.00022469,2]
[336902240,1725238245236,-500.0,0.00022469,2]
[336902242,1725238245245,-500.0,0.00022469,2]
[336902244,1725238245254,-609.12,0.00022469,2]
[336902246,1725238245263,-414.82408258,0.00022469,2]
[336902248,1725238245272,-732.94,0.00022469,2]
[336902250,1725238245281,-500.0,0.00022469,2]
[336902252,1725238245290,-521.21,0.00022469,2]
[336902254,1725238245299,-2008.54,0.00022469,2]
[336902256,1725238245309,-500.0,0.00022469,2]
[336902258,1725238245318,-500.0,0.00022469,2]
[336902260,1725238245327,-500.0,0.00022469,2]
[336902262,1725238245337,-500.0,0.00022469,2]
[336902264,1725238245346,-862.03,0.00022469,2]
[336902266,1725238245355,-500.0,0.00022469,2]
[336902268,1725238245364,-1144.05,0.00022469,2]
[336902270,1725238245373,-400.0,0.00022469,2]
[336902271,1725238245383,-500.0,0.00022469,2]
[336902273,1725238245392,-557.68,0.00022469,2]
[336902275,1725238245401,-500.0,0.00022469,2]
[336902277,1725238245411,-723.44,0.00022469,2]
[336902279,1725238245420,-1126.02,0.00022469,2]
[336902281,1725238245429,-500.0,0.00022469,2]
[336902283,1725238245439,-517.27,0.00022469,2]
[336902285,1725238245448,-3059.41,0.00022469,2]
[336902287,1725238245457,-858.32,0.00022469,2]
[336902289,1725238245466,-500.0,0.00022469,2]
[336902291,1725238245476,-500.0,0.00022469,2]
[336902293,1725238245486,-500.0,0.00022469,2]
[336902295,1725238245495,-500.0,0.00022469,2]
[336902297,1725238245504,-500.0,0.00022469,2]
[336902299,1725238245513,-1493.46,0.00022469,2]
[336902301,1725238245522,-1131.69,0.00022469,2]
[336902303,1725238245531,-2734.66,0.00022469,2]
[336902305,1725238245541,-400.08381952,0.00022469,2]
[336902307,1725238245550,-500.0,0.00022469,2]
[336902309,1725238245559,-909.05,0.00022469,2]
[336902310,1725238245568,-500.0,0.00022469,2]
[336902312,1725238245577,-607.54,0.00022469,2]
[336902313,1725238245586,-1025.71,0.00022469,2]
[336902314,1725238245597,-500.0,0.00022469,2]
[336902315,1725238245610,-1457.01,0.00022469,2]
[336902316,1725238245620,-1048.37,0.00022469,2]
[336902317,1725238245629,-1574.61,0.00022469,2]
[336902318,1725238245640,-500.0,0.00022469,2]
[336902319,1725238245651,-500.0,0.00022469,2]
[336902320,1725238245661,-500.0,0.00022469,2]
[336902321,1725238245670,-764.45,0.00022469,2]
[336902322,1725238245682,-694.15,0.00022469,2]
[336902323,1725238245692,-500.0,0.00022469,2]
[336902324,1725238245701,-1071.45,0.00022469,2]
[336902325,1725238245711,-500.0,0.00022469,2]
[336902326,1725238245721,-1015.7,0.00022469,2]
[336902327,1725238245732,-500.0,0.00022469,2]
[336902329,1725238245741,-500.0,0.00022469,2]
[336902331,1725238245750,-1487.98,0.00022469,2]
[336902333,1725238245759,-500.0,0.00022469,2]
[336902335,1725238245770,-816.4,0.00022469,2]
[336902337,1725238245781,-500.0,0.00022469,2]
[336902339,1725238245791,-853.57,0.00022469,2]
[336902341,1725238245800,-500.0,0.00022469,2]
[336902343,1725238245809,-500.0,0.00022469,2]
[336902345,1725238245818,-614.47,0.00022469,2]
[336902347,1725238245829,-3282.79,0.00022469,2]
[336902349,1725238245839,-500.0,0.00022469,2]
[336902351,1725238245849,-500.0,0.00022469,2]
[336902353,1725238245859,-500.0,0.00022469,2]
[336902355,1725238245868,-500.0,0.00022469,2]
[336902357,1725238245878,-1244.18,0.00022469,2]
[336902359,1725238245887,-556.08,0.00022469,2]
[336902361,1725238245897,-500.0,0.00022469,2]
[336902364,1725238245907,-500.0,0.00022469,2]
[336902367,1725238245917,-500.0,0.00022469,2]
[336902369,1725238245927,-500.0,0.00022469,2]
[336902372,1725238245937,-992.69,0.00022469,2]
[336902375,1725238245947,-1041.59,0.00022469,2]
[336902377,1725238245958,-1202.56,0.00022469,2]
[336902379,1725238245968,-500.0,0.00022469,2]
[336902381,1725238245979,-3149.64,0.00022469,2]
[336902383,1725238245988,-500.0,0.00022469,2]
[336902385,1725238245998,-500.0,0.00022469,2]